bitfinex/quotes_ETHUSD_20240915
["timestamp","ask_amount","ask_price","bid_price","bid_amount"]
[1726408928429,0.0397016,2416.9,2416.7,3.25362728]
[1726408928650,2.3920016,2416.9,2416.6,0.86872728]
[1726408929338,0.0397016,2416.9,2416.6,0.86872728]
[1726408929640,0.0397016,2416.9,2416.7,0.86872728]
[1726408930038,0.0397016,2416.9,2416.7,3.24152728]
[1726408935877,0.0397016,2416.9,2416.8,0.86872728]
[1726408936085,0.0397016,2416.9,2416.7,3.24152728]
[1726408936249,0.0397016,2416.9,2416.7,0.86872728]
[1726408936250,2.3523,2416.8,2416.7,0.86872728]
[1726408936444,2.3523,2416.8,2416.6,0.86872728]
[1726408936777,2.3523,2416.8,2416.7,0.86872728]
[1726408937179,6.49011,2416.8,2416.6,0.86872728]
[1726408939543,6.54017005,2416.7,2416.6,0.86872728]
[1726408939846,6.54017005,2416.7,2416.5,1.30676832]
[1726408939847,6.49017,2416.7,2416.5,0.86872728]
[1726408943528,6.49017,2416.7,2416.6,0.86872728]
[1726408943901,6.49017,2416.7,2416.5,0.86872728]
[1726408944113,6.49017,2416.7,2416.6,0.86872728]
[1726408944317,6.5295916,2416.9,2416.6,0.86872728]
[1726408944491,0.0397016,2416.9,2416.7,2.29286907]
[1726408944825,0.0397016,2416.9,2416.8,0.86872728]
[1726408945008,0.0397016,2416.9,2416.8,1.46597102]
[1726408945516,0.0397016,2416.9,2416.8,0.59724374]
[1726408945831,0.0397016,2416.9,2416.8,1.46653515]
[1726408946027,0.0397016,2416.9,2416.8,1.46654035]
[1726408946531,0.0397016,2416.9,2416.8,1.46652417]
[1726408947020,0.0397016,2416.9,2416.8,0.59724374]
[1726408947226,0.0397016,2416.9,2416.8,4.09090973]
[1726408948128,0.0397016,2416.9,2416.8,0.59724374]
[1726408948330,0.0397016,2416.9,2416.8,4.09051832]
[1726408948493,0.0397016,2416.9,2416.8,0.59724374]
[1726408948710,0.0397016,2416.9,2416.8,4.09055652]
[1726408949225,0.0397016,2416.9,2416.8,4.09076724]
[1726408949409,0.0397016,2416.9,2416.8,0.59724374]
[1726408949608,0.0397016,2416.9,2416.8,4.09077463]
[1726408949853,0.0397016,2416.9,2416.8,1.4664765]
[1726408950147,0.0397016,2416.9,2416.8,4.09078632]
[1726408950355,0.0397016,2416.9,2416.8,4.17353444]
[1726408950818,0.0397016,2416.9,2416.8,6.57133444]
[1726408951343,0.0397016,2416.9,2416.8,6.92417576]
[1726408951554,0.0397016,2416.9,2416.8,6.8943911]
[1726408951725,0.0397016,2416.9,2416.8,6.92417576]
[1726408951925,0.0397016,2416.9,2416.8,5.181818]
[1726408952112,0.0397016,2416.9,2416.8,6.92417576]
[1726408952455,0.0397016,2416.9,2416.8,11.06187576]
[1726408953247,0.0397016,2416.9,2416.8,9.319518]
[1726408953448,0.0397016,2416.9,2416.8,11.06187576]
[1726408953664,0.0397016,2416.9,2416.8,9.319518]
[1726408954373,0.0397016,2416.9,2416.8,10.62299242]
[1726408955080,0.0397016,2416.9,2416.8,9.319518]
[1726408955242,0.0397016,2416.9,2416.8,10.62296387]
[1726408955446,0.0397016,2416.9,2416.8,11.06187576]
[1726408956393,0.0397016,2416.9,2416.8,9.319518]
[1726408956569,0.0397016,2416.9,2416.8,11.06187576]
[1726408957293,0.0397016,2416.9,2416.8,10.62292191]
[1726408957458,0.0397016,2416.9,2416.8,11.06187576]
[1726408957654,0.0397016,2416.9,2416.8,10.6229679]
[1726408957873,0.0397016,2416.9,2416.8,11.06187576]
[1726408958096,0.0397016,2416.9,2416.8,6.92417576]
[1726408958296,0.0397016,2416.9,2416.8,6.48522156]
[1726408959495,0.0397016,2416.9,2416.8,5.181818]
[1726408959900,0.0397016,2416.9,2416.8,6.48528364]
[1726408960068,0.0397016,2416.9,2416.8,6.4852567]
[1726408960388,0.0397016,2416.9,2416.8,5.181818]
[1726408961279,0.0397016,2416.9,2416.8,6.48525038]
[1726408962004,0.0397016,2416.9,2416.8,5.181818]
[1726408962158,0.0397016,2416.9,2416.8,9.319518]
[1726408963065,0.0397016,2416.9,2416.8,11.06187576]
[1726408964675,0.0397016,2416.9,2416.8,9.319518]
[1726408964895,0.0397016,2416.9,2416.8,15.19957576]
[1726408965408,0.0397016,2416.9,2416.8,15.62960531]
[1726408966097,0.0397016,2416.9,2416.8,15.62902939]
[1726408967779,0.0397016,2416.9,2416.8,16.61858103]
[1726408968512,0.0397016,2416.9,2416.8,17.05317118]
[1726408969079,0.0397016,2416.9,2416.8,14.88135979]
[1726408969583,0.0397016,2416.9,2416.8,16.61841588]
[1726408974002,0.0397016,2416.9,2416.8,17.05259126]
[1726408974810,0.0397016,2416.9,2416.8,14.88135979]
[1726408975013,0.0397016,2416.9,2416.8,18.17738043]
[1726408975489,0.0397016,2416.9,2416.8,22.17738043]
[1726408975884,0.0397016,2416.9,2416.8,24.78145323]
[1726408976125,0.0397016,2416.9,2416.8,24.78088492]
[1726408976320,0.0397016,2416.9,2416.8,22.17738043]
[1726408976827,7.3297016,2417.6,2417.5,6.5021]
[1726408977132,0.0397016,2417.6,2417.5,8.79373648]
[1726408977286,0.0397016,2417.6,2417.5,7.92624179]
[1726408977686,0.0397016,2417.6,2417.5,15.62992533]
[1726408977983,0.0397016,2417.6,2417.5,16.41675275]
[1726408978413,0.0397016,2417.6,2417.5,16.33404005]
[1726408978613,0.0397016,2417.6,2417.5,16.76793366]
[1726408978857,0.0397016,2417.6,2417.5,15.77768548]
[1726408979070,0.0397016,2417.6,2417.5,16.76659473]
[1726408979281,0.0397016,2417.6,2417.5,16.33253254]
[1726408980177,0.0397016,2417.6,2417.5,20.33253254]
[1726408980378,0.0397016,2417.6,2417.5,20.76659473]
[1726408983468,0.0397016,2417.6,2417.5,15.78306653]
[1726408983675,0.0397016,2417.6,2417.5,12.40521475]
[1726408983873,0.0397016,2417.6,2417.5,4.0]
[1726408983874,2.3091016,2417.6,2417.5,4.0]
[1726408984261,2.3091016,2417.6,2417.3,6.42696502]
[1726408984484,2.3091016,2417.6,2417.4,4.0]
[1726408984881,2.3091016,2417.6,2417.2,0.86609323]
[1726408985078,2.3091016,2417.6,2417.2,5.00300323]
[1726408985271,2.3091016,2417.6,2417.3,0.86609323]
[1726408985785,2.3091016,2417.6,2417.3,1.42414179]
[1726408985985,2.3091016,2417.6,2417.2,6.16700543]
[1726408987569,2.3091016,2417.6,2417.3,0.86609323]
[1726408987912,2.3091016,2417.6,2417.2,2.03009543]
[1726408988616,2.3091016,2417.6,2417.1,5.00313323]
[1726408989166,2.3091016,2417.6,2417.2,4.137]
[1726408989481,2.3091016,2417.6,2417.2,0.86609323]
[1726408991486,2.3091016,2417.6,2417.2,5.00310323]
[1726408991685,2.3091016,2417.6,2417.3,8.08370059]
[1726408992182,2.3091016,2417.6,2417.3,5.00292323]
[1726408992377,2.3091016,2417.6,2417.3,8.08370059]
[1726408994513,2.3091016,2417.6,2417.3,12.22044059]
[1726408994713,2.3091016,2417.6,2417.4,0.86609323]
[1726408994896,2.3091016,2417.6,2417.4,2.45719888]
[1726408995100,2.3091016,2417.6,2417.4,0.86609323]
[1726408997438,2.3091016,2417.6,2417.3,8.08361059]
[1726408997925,2.3091016,2417.6,2417.4,0.86609323]
[1726409005055,0.0397016,2417.6,2417.4,1.97778757]
[1726409005245,0.0397016,2417.6,2417.5,0.86609323]
[1726409006134,0.0397016,2417.6,2417.5,2.28772657]
[1726409010669,0.0397016,2417.6,2417.5,1.42163334]
[1726409010883,0.0397016,2417.6,2417.5,3.45908239]
[1726409011262,0.0397016,2417.6,2417.5,6.96579216]
[1726409011591,0.0397016,2417.6,2417.5,4.92834311]
[1726409014862,0.0397016,2417.6,2417.5,9.06484311]
[1726409017187,0.0397016,2417.6,2417.5,9.4999813]
[1726409018680,0.0397016,2417.6,2417.5,9.90881754]
[1726409018993,0.0397016,2417.6,2417.5,11.77021469]
[1726409019589,0.0397016,2417.6,2417.5,11.36137845]
[1726409019796,0.0397016,2417.6,2417.5,11.77021477]
[1726409020838,0.0397016,2417.6,2417.5,12.20660323]
[1726409020995,0.0397016,2417.6,2417.5,12.20842468]
[1726409021631,0.0397016,2417.6,2417.5,21.1355292]
[1726409021841,0.0397016,2417.6,2417.5,25.38394171]
[1726409022200,0.0397016,2417.6,2417.5,27.08747266]
[1726409022535,0.0397016,2417.6,2417.5,27.99030859]
[1726409023028,0.0397016,2417.6,2417.5,25.38391391]
[1726409023230,0.0397016,2417.6,2417.5,27.98983329]
[1726409023739,0.0397016,2417.6,2417.5,26.02402433]
[1726409023901,0.0397016,2417.6,2417.5,25.38382843]
[1726409024243,0.0397016,2417.6,2417.5,27.98971406]
[1726409024413,0.0397016,2417.6,2417.5,27.08683891]
[1726409025001,0.0397016,2417.6,2417.5,27.98971509]
[1726409025227,0.0397016,2417.6,2417.5,27.08683891]
[1726409025600,0.0397016,2417.6,2417.5,27.08622868]
[1726409026533,0.0397016,2417.6,2417.5,25.45907438]
[1726409026841,0.0397016,2417.6,2417.5,27.0862198]
[1726409027938,0.0397016,2417.6,2417.5,25.66458646]
[1726409028110,2.4687016,2417.6,2417.5,10.64883445]
[1726409028314,2.4687016,2417.6,2417.5,8.7874373]
[1726409028651,2.4687016,2417.6,2417.5,13.91149524]
[1726409029124,2.4687016,2417.6,2417.5,9.91149524]
[1726409030022,2.4687016,2417.6,2417.5,9.50270581]
[1726409030406,2.4687016,2417.6,2417.5,9.91154888]
[1726409030609,2.4687016,2417.6,2417.5,5.77504888]
[1726409031717,2.4687016,2417.6,2417.5,5.36620581]
[1726409032020,2.4687016,2417.6,2417.5,5.77504165]
[1726409032412,2.4687016,2417.6,2417.5,4.35340831]
[1726409037073,2.4687016,2417.6,2417.5,3.94457247]
[1726409037480,2.4687016,2417.6,2417.5,4.35341802]
[1726409038087,2.4687016,2417.6,2417.5,3.94457247]
[1726409038288,2.4687016,2417.6,2417.5,5.5665773]
[1726409038584,2.4687016,2417.6,2417.5,7.83175284]
[1726409038743,2.4687016,2417.6,2417.5,7.39747219]
[1726409038946,2.4687016,2417.6,2417.5,7.39747766]
[1726409040645,0.0397016,2417.6,2417.5,7.39747766]
[1726409041595,0.0397016,2417.6,2417.5,7.39756948]
[1726409042151,0.0397016,2417.6,2417.5,11.53406948]
[1726409042350,0.0397016,2417.6,2417.5,9.79659594]
[1726409042569,0.0397016,2417.6,2417.5,11.96843787]
[1726409043253,0.0397016,2417.6,2417.5,11.5595228]
[1726409043459,0.0397016,2417.6,2417.5,11.96835763]
[1726409046815,0.0397016,2417.6,2417.5,11.5595228]
[1726409047099,0.0397016,2417.6,2417.5,11.96835728]
[1726409048222,0.0397016,2417.6,2417.5,11.96853405]
[1726409052889,0.0397016,2417.6,2417.5,11.96879497]
[1726409054514,0.0397016,2417.6,2417.5,11.55996049]
[1726409054718,0.0397016,2417.6,2417.5,11.96879817]
[1726409057634,0.0397016,2417.6,2417.5,11.96904693]
[1726409061039,0.0397016,2417.6,2417.5,7.42370925]
[1726409061239,2.2972016,2417.6,2417.5,4.38007108]
[1726409061601,2.2972016,2417.6,2417.5,4.7889084]
[1726409062304,2.2972016,2417.6,2417.5,4.78901102]
[1726409062514,2.2972016,2417.6,2417.5,2.61644977]
[1726409062716,2.2972016,2417.6,2417.5,4.03808311]
[1726409063039,2.2972016,2417.6,2417.5,7.70248883]
[1726409063453,0.0397016,2417.6,2417.5,15.97548883]
[1726409063742,0.0397016,2417.6,2417.5,13.02710788]
[1726409063939,0.0397016,2417.6,2417.5,19.77068138]
[1726409064301,0.0397016,2417.6,2417.5,19.36184406]
[1726409064542,0.0397016,2417.6,2417.5,19.77064947]
[1726409064951,0.0397016,2417.6,2417.5,17.16357529]
[1726409065108,0.0397016,2417.6,2417.5,19.77064879]
[1726409065504,0.0397016,2417.6,2417.5,15.63414879]
[1726409065709,0.0397016,2417.6,2417.5,13.02707529]
[1726409065921,0.0397016,2417.6,2417.5,15.63414879]
[1726409066125,0.0397016,2417.6,2417.5,13.02707529]
[1726409067211,0.0397016,2417.6,2417.5,15.63414879]
[1726409067853,0.0397016,2417.6,2417.5,15.06980091]
[1726409068145,0.0397016,2417.6,2417.5,15.22531571]
[1726409068348,0.0397016,2417.6,2417.5,12.61824221]
[1726409068512,0.0397016,2417.6,2417.5,13.02704885]
[1726409068707,0.0397016,2417.6,2417.5,8.89054885]
[1726409069044,0.0397016,2417.6,2417.5,13.02704885]
[1726409071248,0.0397016,2417.6,2417.5,12.05392268]
[1726409071547,0.0397016,2417.6,2417.5,15.22535396]
[1726409071843,0.0397016,2417.6,2417.5,15.22607696]
[1726409072048,0.0397016,2417.6,2417.5,8.89061067]
[1726409072214,0.0397016,2417.6,2417.5,7.39878301]
[1726409072408,0.0397016,2417.6,2417.5,11.53528301]
[1726409072614,0.0397016,2417.6,2417.5,5.97714967]
[1726409073429,0.0397016,2417.6,2417.5,7.39878301]
[1726409074449,0.0397016,2417.6,2417.5,12.94959196]
[1726409074634,0.0397016,2417.6,2417.5,11.97640397]
[1726409074950,0.0397016,2417.6,2417.5,12.54075573]
[1726409075155,0.0397016,2417.6,2417.5,12.38522992]
[1726409075473,0.0397016,2417.6,2417.5,12.94958456]
[1726409075673,0.0397016,2417.6,2417.5,15.55738106]
[1726409076171,0.0397016,2417.6,2417.5,12.94958456]
[1726409078130,0.0397016,2417.6,2417.5,12.38522992]
[1726409078327,0.0397016,2417.6,2417.5,12.94958269]
[1726409079575,0.0397016,2417.6,2417.5,15.55825133]
[1726409079863,0.0397016,2417.6,2417.5,12.94958269]
[1726409080475,0.0397016,2417.6,2417.5,15.55825133]
[1726409081140,0.0397016,2417.6,2417.5,12.94958269]
[1726409081438,0.0397016,2417.6,2417.5,12.54075674]
[1726409081631,0.0397016,2417.6,2417.5,15.14942462]
[1726409081831,0.0397016,2417.6,2417.5,12.54075598]
[1726409082586,0.0397016,2417.6,2417.5,15.14942462]
[1726409082738,0.0397016,2417.6,2417.5,15.14959052]
[1726409082938,0.0397016,2417.6,2417.5,12.54075598]
[1726409083175,0.0397016,2417.6,2417.5,15.14959052]
[1726409084144,2.4751016,2417.6,2417.5,6.98994703]
[1726409084844,2.4751016,2417.6,2417.5,6.42559502]
[1726409085066,2.4751016,2417.6,2417.5,11.12646089]
[1726409085375,2.4751016,2417.6,2417.5,11.12646168]
[1726409085757,2.4751016,2417.6,2417.5,13.73529622]
[1726409086157,2.4751016,2417.6,2417.5,13.7354642]
[1726409086778,2.4751016,2417.6,2417.5,11.12646168]
[1726409087788,2.4751016,2417.6,2417.5,13.7354642]
[1726409088589,2.4751016,2417.6,2417.5,13.17109754]
[1726409088749,2.4751016,2417.6,2417.5,9.598957]
[1726409088949,2.4751016,2417.6,2417.5,6.98995448]
[1726409089690,2.72261176,2417.6,2417.5,4.38212639]
[1726409089865,2.77261181,2417.6,2417.5,4.38212639]
[1726409090269,2.77261181,2417.6,2417.5,2.20761245]
[1726409090579,2.77261181,2417.6,2417.5,3.94703505]
[1726409092158,6.90894181,2417.6,2417.5,3.94703505]
[1726409092358,2.3324,2417.5,2417.4,1.30425656]
[1726409092563,7.57342318,2417.5,2417.4,3.56729102]
[1726409092758,11.75992323,2417.5,2417.4,0.86957892]
[1726409093395,11.75992323,2417.5,2417.3,1.30425656]
[1726409093396,6.46907,2417.4,2417.3,0.86957892]
[1726409093591,7.84119587,2417.4,2417.3,0.86957892]
[1726409096602,7.84119587,2417.4,2417.2,0.86957892]
[1726409096904,6.51907005,2417.4,2417.2,0.86957892]
[1726409100509,2.3324,2417.4,2417.2,0.86957892]
[1726409102320,2.38240005,2417.4,2417.2,0.86957892]
[1726409102922,2.38240005,2417.4,2417.1,0.86957892]
[1726409103123,2.38240005,2417.4,2417.2,0.86957892]
[1726409103325,2.38240005,2417.4,2417.1,0.86957892]
[1726409103526,2.3324,2417.4,2417.2,0.86957892]
[1726409104236,2.3324,2417.4,2417.1,0.86957892]
[1726409104380,2.3324,2417.4,2417.2,0.86957892]
[1726409105328,2.3324,2417.4,2417.1,0.86957892]
[1726409105511,2.3324,2417.4,2417.2,0.86957892]
[1726409105913,2.3324,2417.4,2417.1,0.86957892]
[1726409106113,2.3324,2417.4,2417.2,0.86957892]
[1726409106311,2.3324,2417.4,2417.1,0.86957892]
[1726409106496,2.3324,2417.4,2417.2,0.86957892]
[1726409108433,2.3324,2417.4,2417.1,1.90293227]
[1726409117464,2.3324,2417.4,2417.1,0.86957892]
[1726409118435,2.3324,2417.4,2417.2,0.86957892]
[1726409121782,2.5119016,2417.6,2417.2,6.42821226]
[1726409121934,0.0397016,2417.6,2417.4,1.42163334]
[1726409122364,0.0397016,2417.6,2417.4,2.29121226]
[1726409123397,0.0397016,2417.6,2417.4,4.68901226]
[1726409123750,0.0397016,2417.6,2417.5,0.86957892]
[1726409123981,0.0397016,2417.6,2417.5,1.74415075]
[1726409125553,0.0397016,2417.6,2417.5,4.43773601]
[1726409126355,0.0397016,2417.6,2417.5,0.87457183]
[1726409127582,0.0397016,2417.6,2417.5,4.43828109]
[1726409131178,0.0397016,2417.6,2417.5,0.87457183]
[1726409131505,2.4751016,2417.6,2417.5,3.56445726]
[1726409131662,2.5844376,2417.6,2417.5,0.86841404]
[1726409131857,6.7207676,2417.6,2417.5,0.86841404]
[1726409132157,7.81647037,2417.6,2417.5,0.86841404]
[1726409132361,7.86647042,2417.6,2417.5,0.86841404]
[1726409133184,7.81647037,2417.6,2417.5,0.86841404]
[1726409133368,6.7207676,2417.6,2417.5,0.86841404]
[1726409135768,6.7207676,2417.6,2417.5,3.56575283]
[1726409138005,2.5844376,2417.6,2417.5,3.56575283]
[1726409141287,6.7207676,2417.6,2417.5,3.56575283]
[1726409141507,6.7207676,2417.6,2417.5,0.86896758]
[1726409141817,7.81147037,2417.6,2417.5,0.86896758]
[1726409141983,7.86147042,2417.6,2417.5,0.86896758]
[1726409142526,6.4921,2417.5,2417.4,0.86896758]
[1726409142877,6.59758949,2417.5,2417.4,0.86896758]
[1726409143217,6.64758954,2417.5,2417.4,0.86896758]
[1726409143382,6.64758954,2417.5,2417.3,0.86896758]
[1726409143573,6.64758954,2417.5,2417.4,0.86896758]
[1726409144004,6.59758949,2417.5,2417.4,0.86896758]
[1726409145383,6.64758954,2417.5,2417.4,0.86896758]
[1726409146217,6.59758949,2417.5,2417.4,0.86896758]
[1726409146522,6.64758954,2417.5,2417.4,0.86896758]
[1726409146722,6.59758949,2417.5,2417.4,0.86896758]
[1726409146881,6.64758954,2417.5,2417.4,0.86896758]
[1726409147082,6.59758949,2417.5,2417.4,0.86896758]
[1726409147281,6.64758954,2417.5,2417.4,0.86896758]
[1726409147897,6.59758949,2417.5,2417.4,0.86896758]
[1726409150236,2.46108949,2417.5,2417.4,0.86896758]
[1726409151497,2.51108954,2417.5,2417.4,0.86896758]
[1726409151737,2.46108949,2417.5,2417.4,0.86896758]
[1726409151939,0.10548949,2417.5,2417.3,2.7258899]
[1726409152108,0.10548949,2417.5,2417.4,5.83227319]
[1726409154798,0.10548949,2417.5,2417.4,3.56627319]
[1726409155421,2.60478949,2417.5,2417.4,3.56627319]
[1726409155624,2.60478949,2417.5,2417.4,0.8692004]
[1726409157433,7.47437565,2417.5,2417.4,0.8692004]
[1726409159204,6.79128954,2417.5,2417.4,0.8692004]
[1726409159407,2.65478954,2417.5,2417.4,0.8692004]
[1726409159602,6.79128954,2417.5,2417.4,0.8692004]
[1726409161937,6.79128954,2417.5,2416.9,2.266]
[1726409162136,6.79128954,2417.5,2417.0,0.40890919]
[1726409162137,4.13667,2417.4,2417.0,0.40890919]
[1726409162343,4.13667,2417.4,2416.9,2.266]
[1726409162549,0.10128683,2417.3,2417.0,0.40891942]
[1726409162846,0.10128683,2417.3,2416.9,2.266]
[1726409163142,0.10128683,2417.3,2416.9,3.04852133]
[1726409163542,0.10128683,2417.3,2416.9,8.60766467]
[1726409169107,0.10128683,2417.3,2416.9,4.47015467]
[1726409170046,0.10128683,2417.3,2416.9,8.60767467]
[1726409172049,2.4892,2417.2,2416.7,2.2908]
[1726409172221,2.53920005,2417.1,2416.4,7.33231969]
[1726409172544,2.64033172,2417.1,2416.5,5.46823197]
[1726409172734,2.64033172,2417.1,2416.5,6.03278622]
[1726409172931,2.64033172,2417.1,2416.5,5.46823197]
[1726409173122,2.4892,2416.9,2416.5,6.12254978]
[1726409173321,2.53920005,2416.9,2416.5,6.12254978]
[1726409173531,0.1008769,2416.8,2416.5,5.46823197]
[1726409174012,0.1008769,2416.8,2416.5,1.46823197]
[1726409174431,0.1008769,2416.8,2416.5,2.88986531]
[1726409174635,0.1008769,2416.8,2416.7,1.42163334]
[1726409174856,4.1374,2417.0,2416.7,1.42163334]
[1726409175156,0.10050649,2416.8,2416.7,1.42163334]
[1726409175309,4.1374,2417.0,2416.7,1.42163334]
[1726409175505,0.10050649,2416.8,2416.7,1.97761767]
[1726409175755,4.1374,2417.0,2416.7,1.42163334]
[1726409175953,0.10050649,2416.8,2416.7,1.42163334]
[1726409176558,4.1374,2417.0,2416.7,1.42163334]
[1726409177045,0.10059143,2416.9,2416.7,1.42163334]
[1726409177409,0.10059143,2416.9,2416.5,5.55984334]
[1726409177704,0.10059143,2416.9,2416.5,6.61657134]
[1726409180023,0.10059143,2416.9,2416.8,0.86817155]
[1726409181220,0.10059143,2416.9,2416.7,0.86817155]
[1726409187248,0.15059148,2416.9,2416.7,0.86817155]
[1726409187449,2.2695,2416.8,2416.7,0.86817155]
[1726409187757,2.37002097,2416.8,2416.7,0.86817155]
[1726409190744,6.50772097,2416.8,2416.7,0.86817155]
[1726409192393,2.37002097,2416.8,2416.7,0.86817155]
[1726409192744,4.13787,2416.7,2416.6,0.86817155]
[1726409192955,3.02076307,2416.8,2416.6,0.86817155]
[1726409192956,4.88897307,2416.8,2416.6,0.86817155]
[1726409193159,0.10037299,2416.7,2416.6,0.86817155]
[1726409193607,4.13771,2416.8,2416.6,0.86817155]
[1726409193756,0.10043151,2416.7,2416.6,0.86817155]
[1726409194160,4.13771,2416.8,2416.6,0.86817155]
[1726409194383,0.10043151,2416.7,2416.6,0.86817155]
[1726409194797,4.13771,2416.8,2416.6,0.86817155]
[1726409195007,0.1004122,2416.7,2416.6,0.86817155]
[1726409195363,4.13771,2416.8,2416.6,0.86817155]
[1726409195569,0.1004122,2416.7,2416.6,0.86817155]
[1726409195897,2.2695,2416.7,2416.6,0.86817155]
[1726409196109,2.3699122,2416.7,2416.6,0.86817155]
[1726409196895,2.3699122,2416.7,2416.5,0.86817155]
[1726409197093,2.41991225,2416.7,2416.6,0.86817155]
[1726409197687,2.3699122,2416.7,2416.5,0.86817155]
[1726409197880,2.3699122,2416.7,2416.6,0.86817155]
[1726409198102,2.3699122,2416.7,2416.5,0.86817155]
[1726409198484,2.41991225,2416.7,2416.5,0.86817155]
[1726409199220,2.3699122,2416.7,2416.5,0.86817155]
[1726409199723,0.1004122,2416.7,2416.6,0.86817155]
[1726409200007,4.13771,2416.8,2416.6,0.86817155]
[1726409200183,0.09701518,2416.7,2416.6,0.86817155]
[1726409200601,10.54482,2416.9,2416.6,0.86817155]
[1726409200804,0.09701518,2416.7,2416.6,0.86817155]
[1726409201006,10.54482,2416.9,2416.6,0.86817155]
[1726409201223,0.09702,2416.7,2416.6,0.86817155]
[1726409201417,10.54482,2416.9,2416.6,0.86817155]
[1726409201618,0.09702242,2416.7,2416.6,0.86817155]
[1726409201820,10.54482,2416.9,2416.6,0.86817155]
[1726409202023,0.09702242,2416.7,2416.6,0.86817155]
[1726409202332,10.54482,2416.9,2416.6,0.86817155]
[1726409202631,0.09702242,2416.7,2416.6,0.86817155]
[1726409202844,10.54483,2416.9,2416.6,0.86817155]
[1726409202992,0.09697656,2416.7,2416.6,0.86817155]
[1726409203193,6.40716,2416.9,2416.6,0.86817155]
[1726409203725,0.09699334,2416.8,2416.6,0.86817155]
[1726409205900,0.09699334,2416.8,2416.6,3.89642875]
[1726409206139,2.2695,2417.1,2416.7,2.28980489]
[1726409206442,2.2695,2417.1,2416.8,0.86817155]
[1726409206621,2.2695,2417.1,2416.9,0.86817155]
[1726409216459,6.40668,2417.1,2416.9,0.86817155]
[1726409217833,0.09702354,2417.0,2416.9,0.86817155]
[1726409218234,0.09702354,2417.0,2416.8,1.30225732]
[1726409218438,0.09702354,2417.0,2416.9,0.86973284]
[1726409219062,0.14702359,2417.0,2416.9,0.86973284]
[1726409219306,0.14702359,2417.0,2416.8,1.30225732]
[1726409219471,0.09702354,2417.0,2416.8,1.30225732]
[1726409219626,0.14702359,2417.0,2416.8,1.30225732]
[1726409220375,0.09702354,2417.0,2416.8,1.30225732]
[1726409220568,0.14702359,2417.0,2416.8,1.30225732]
[1726409220864,0.09702354,2417.0,2416.9,0.86974242]
[1726409221780,0.09702354,2417.0,2416.8,1.30225732]
[1726409221938,0.09702354,2417.0,2416.9,3.56203653]
[1726409222568,0.09702354,2417.0,2416.8,1.30225732]
[1726409223870,0.14702359,2417.0,2416.8,1.30225732]
[1726409224074,0.09702354,2417.0,2416.8,1.30225732]
[1726409224243,0.09702354,2417.0,2416.9,3.56202579]
[1726409225331,0.09702354,2417.0,2416.8,1.30225732]
[1726409226770,0.09702354,2417.0,2416.9,3.56204431]
[1726409227855,0.09702354,2417.0,2416.8,1.30225732]
[1726409230595,4.23438354,2417.0,2416.8,1.30225732]
[1726409230788,0.09702354,2417.0,2416.8,1.30225732]
[1726409230939,0.09702354,2417.0,2416.9,0.86974751]
[1726409236613,0.09702354,2417.0,2416.9,3.56202021]
[1726409236822,0.09702354,2417.0,2416.9,5.87262021]
[1726409237789,0.09702354,2417.0,2416.9,3.56202021]
[1726409241622,6.68748354,2417.0,2416.9,0.86977059]
[1726409241828,7.11090389,2417.0,2416.9,0.86977059]
[1726409242057,7.11090389,2417.0,2416.9,0.86975048]
[1726409242214,7.11090389,2417.0,2416.8,1.30225732]
[1726409242420,3.02354394,2417.0,2416.8,1.30225732]
[1726409242618,2.97354389,2417.0,2416.8,1.30225732]
[1726409242861,2.97354389,2417.0,2416.9,0.86977602]
[1726409243054,2.55012354,2417.0,2416.9,0.86977602]
[1726409244055,6.68748354,2417.0,2416.9,0.86977602]
[1726409244667,6.68748354,2417.0,2416.8,1.30225732]
[1726409244965,6.73748359,2417.0,2416.8,1.30225732]
[1726409245168,0.09702354,2417.0,2416.9,3.5623286]
[1726409247622,0.09702354,2417.0,2416.9,2.26007128]
[1726409248136,0.09702354,2417.0,2416.9,3.5650338]
[1726409248350,0.09702354,2417.0,2416.9,2.26007128]
[1726409248572,0.08232354,2417.0,2416.9,6.26621907]
[1726409248729,4.13678,2417.4,2416.9,9.50011671]
[1726409248927,4.13678,2417.4,2417.3,0.86995414]
[1726409249679,4.13661,2417.5,2417.3,0.86995414]
[1726409249995,4.18661005,2417.5,2417.3,0.86995414]
[1726409250201,0.55,2417.4,2417.3,0.86995414]
[1726409250862,4.68667,2417.4,2417.2,0.86995414]
[1726409251213,2.4756,2417.3,2417.2,0.86995414]
[1726409251565,6.61244,2417.3,2417.2,0.86995414]
[1726409251964,5.61244,2417.3,2417.2,0.86995414]
[1726409253219,4.13684,2417.3,2417.2,0.86995414]
[1726409256105,4.23365996,2417.3,2417.2,0.86995414]
[1726409263627,4.23365996,2417.3,2417.1,0.86995414]
[1726409269964,0.05000005,2417.2,2417.1,0.86995414]
[1726409270138,0.14694506,2417.2,2417.1,0.86995414]
[1726409270725,0.09694501,2417.2,2417.1,0.86995414]
[1726409270927,6.48544,2417.3,2417.1,0.86995414]
[1726409271124,0.09693777,2417.2,2417.1,0.86995414]
[1726409271377,6.48544,2417.3,2417.1,0.86995414]
[1726409271667,0.09693777,2417.2,2417.1,0.86995414]
[1726409272030,6.48544,2417.3,2417.1,0.86995414]
[1726409272380,0.14693782,2417.2,2417.1,0.86995414]
[1726409274074,0.09693777,2417.2,2417.1,0.86995414]
[1726409274581,0.09693534,2417.2,2417.1,0.86995414]
[1726409274737,6.48544,2417.3,2417.1,0.86995414]
[1726409274934,0.09693534,2417.2,2417.1,0.86995414]
[1726409275136,6.48544,2417.3,2417.1,0.86995414]
[1726409275333,0.09369818,2417.2,2417.1,0.86995414]
[1726409275580,6.48544,2417.3,2417.1,0.86995414]
[1726409275779,0.09369818,2417.2,2417.1,0.86995414]
[1726409275984,6.48544,2417.3,2417.1,0.86995414]
[1726409276183,0.09369818,2417.2,2417.1,0.86995414]
[1726409276484,0.05000005,2417.2,2417.1,0.86995414]
[1726409276690,0.14369823,2417.2,2417.1,0.86995414]
[1726409276860,6.48544,2417.3,2417.1,0.86995414]
[1726409277049,0.09369818,2417.2,2417.1,0.86995414]
[1726409277385,6.48544,2417.3,2417.1,0.86995414]
[1726409277560,0.09369818,2417.2,2417.1,0.86995414]
[1726409277762,6.48544,2417.3,2417.1,0.86995414]
[1726409278081,0.09369818,2417.2,2417.1,0.86995414]
[1726409278470,6.48544,2417.3,2417.1,0.86995414]
[1726409278471,4.13684,2417.3,2417.1,0.86995414]
[1726409278640,0.09369818,2417.2,2417.1,1.30493122]
[1726409278845,0.09369818,2417.2,2417.1,3.56432167]
[1726409279080,4.13684,2417.3,2417.1,3.56432167]
[1726409279287,0.09370062,2417.2,2417.1,1.30493122]
[1726409279549,0.09370062,2417.2,2417.1,3.56434807]
[1726409279684,4.13684,2417.3,2417.1,3.56434807]
[1726409279883,0.09370062,2417.2,2417.1,1.30493122]
[1726409280101,0.09370062,2417.2,2417.1,3.56434861]
[1726409280268,4.13684,2417.3,2417.1,3.56434861]
[1726409280469,4.13684,2417.3,2417.1,1.30493122]
[1726409280470,0.09370062,2417.2,2417.1,1.30493122]